fUST/lending_fUST_20260520
["ID","MTS","AMOUNT","RATE_DAILY","PERIOD"]
[422708199,1779285039000,-500.0,8.219e-05,2]
[422708197,1779285039000,-500.0,8.219e-05,2]
[422708198,1779285039000,-500.0,8.219e-05,2]
[422708207,1779285039000,-500.0,8.219e-05,2]
[422708203,1779285039000,-540.69,8.219e-05,2]
[422708204,1779285039000,-1117.45,8.219e-05,2]
[422708205,1779285039000,-500.0,8.219e-05,2]
[422708190,1779285039000,-500.0,8.219e-05,2]
[422708202,1779285039000,-1212.71,8.219e-05,2]
[422708201,1779285039000,-500.0,8.219e-05,2]
[422708211,1779285039000,-500.0,8.219e-05,2]
[422708214,1779285039000,-241.75711211,8.219e-05,2]
[422708215,1779285039000,-258.24288789,8.219e-05,2]
[422708213,1779285039000,-500.0,8.219e-05,2]
[422708217,1779285039000,-500.0,8.219e-05,2]
[422708222,1779285039000,-620.21,8.219e-05,2]
[422708221,1779285039000,-769.67,8.219e-05,2]
[422708219,1779285039000,-644.6,8.219e-05,2]
[422708218,1779285039000,-500.0,8.219e-05,2]
[422708220,1779285039000,-500.0,8.219e-05,2]
[422708154,1779285039000,-151.0,8.218e-05,2]
[422708209,1779285039000,-500.0,8.219e-05,2]
[422708188,1779285039000,-500.0,8.219e-05,2]
[422708200,1779285039000,-500.0,8.219e-05,2]
[422708189,1779285039000,-500.0,8.219e-05,2]
[422708156,1779285039000,-249.384741,8.218e-05,2]
[422708163,1779285039000,-1333.549471,8.218e-05,2]
[422708171,1779285039000,-650.73,8.219e-05,2]
[422708195,1779285039000,-500.0,8.219e-05,2]
[422708162,1779285039000,-275.208196,8.218e-05,2]
[422708168,1779285039000,-608.8309,8.219e-05,2]
[422708169,1779285039000,-500.0,8.219e-05,2]
[422708170,1779285039000,-1255.58,8.219e-05,2]
[422708166,1779285039000,-1333.549471,8.218e-05,2]
[422708173,1779285039000,-500.0,8.219e-05,2]
[422708167,1779285039000,-3061.5673,8.219e-05,2]
[422708165,1779285039000,-1333.549471,8.218e-05,2]
[422708164,1779285039000,-1333.549471,8.218e-05,2]
[422708185,1779285039000,-239.001407,8.219e-05,2]
[422708172,1779285039000,-500.0,8.219e-05,2]
[422708181,1779285039000,-500.0,8.219e-05,2]
[422708175,1779285039000,-504.78,8.219e-05,2]
[422708180,1779285039000,-500.0,8.219e-05,2]
[422708178,1779285039000,-500.0,8.219e-05,2]
[422708176,1779285039000,-500.0,8.219e-05,2]
[422708177,1779285039000,-500.0,8.219e-05,2]
[422708187,1779285039000,-500.0,8.219e-05,2]
[422708182,1779285039000,-645.26,8.219e-05,2]
[422708174,1779285039000,-608.95391014,8.219e-05,2]
[422708186,1779285039000,-515.37,8.219e-05,2]
[422708183,1779285039000,-500.0,8.219e-05,2]
[422708184,1779285039000,-151.0,8.219e-05,2]
[422708179,1779285039000,-500.0,8.219e-05,2]
[422708243,1779285040000,-151.0,8.219e-05,2]
[422708253,1779285040000,-216.209738,8.219e-05,2]
[422708238,1779285040000,-151.0,8.219e-05,2]
[422708228,1779285040000,-500.0,8.219e-05,2]
[422708239,1779285040000,-151.0,8.219e-05,2]
[422708223,1779285040000,-500.0,8.219e-05,2]
[422708240,1779285040000,-151.0,8.219e-05,2]
[422708235,1779285040000,-500.0,8.219e-05,2]
[422708229,1779285040000,-26.21319578,8.219e-05,2]
[422708237,1779285040000,-151.0,8.219e-05,2]
[422708225,1779285040000,-500.0,8.219e-05,2]
[422708236,1779285040000,-151.0,8.219e-05,2]
[422708234,1779285040000,-500.0,8.219e-05,2]
[422708226,1779285040000,-500.0,8.219e-05,2]
[422708224,1779285040000,-499.18345037,8.219e-05,2]
[422708227,1779285040000,-577.05074937,8.219e-05,2]
[422708232,1779285040000,-500.0,8.219e-05,2]
[422708241,1779285040000,-151.0,8.219e-05,2]
[422708231,1779285040000,-500.0,8.219e-05,2]
[422708242,1779285040000,-151.0,8.219e-05,2]
[422708230,1779285040000,-473.78680422,8.219e-05,2]
[422708250,1779285040000,-151.0,8.219e-05,2]
[422708233,1779285040000,-500.0,8.219e-05,2]
[422708246,1779285040000,-151.0,8.219e-05,2]
[422708244,1779285040000,-151.0,8.219e-05,2]
[422708273,1779285040000,-188.03640026,8.219e-05,2]
[422708264,1779285040000,-603.35,8.219e-05,2]
[422708267,1779285040000,-500.0,8.219e-05,2]
[422708258,1779285040000,-544.53,8.219e-05,2]
[422708262,1779285040000,-2889.7386634,8.219e-05,2]
[422708268,1779285040000,-311.96359974,8.219e-05,2]
[422708256,1779285040000,-500.0,8.219e-05,2]
[422708261,1779285040000,-500.0,8.219e-05,2]
[422708257,1779285040000,-845.64,8.219e-05,2]
[422708274,1779285040000,-356.19112608,8.219e-05,2]
[422708260,1779285040000,-1307.05,8.219e-05,2]
[422708266,1779285040000,-500.0,8.219e-05,2]
[422708255,1779285040000,-500.0,8.219e-05,2]
[422708254,1779285040000,-507.18,8.219e-05,2]
[422708251,1779285040000,-151.0,8.219e-05,2]
[422708245,1779285040000,-151.0,8.219e-05,2]
[422708248,1779285040000,-523.64,8.219e-05,2]
[422708247,1779285040000,-500.0,8.219e-05,2]
[422708249,1779285040000,-151.0,8.219e-05,2]
[422708252,1779285040000,-500.0,8.219e-05,2]
[422708259,1779285040000,-889.86,8.219e-05,2]
[422708286,1779285043000,-143.80887392,8.219e-05,2]
[422708288,1779285043000,-500.0,8.219e-05,2]
[422708287,1779285043000,-500.0,8.219e-05,2]
[422708291,1779285043000,-273.41459531,8.219e-05,2]
[422708290,1779285043000,-817.08,8.219e-05,2]
[422708292,1779285043000,-2224.98540469,8.219e-05,2]
[422708293,1779285043000,-62.83970689,8.219e-05,2]
[422708289,1779285043000,-500.0,8.219e-05,2]
[422708301,1779285046000,-459.92593049,8.219e-05,2]
[422708305,1779285046000,-465.59530134,8.219e-05,2]
[422708302,1779285046000,-40.07406951,8.219e-05,2]
[422708303,1779285046000,-711.43,8.219e-05,2]
[422708304,1779285046000,-34.40469866,8.219e-05,2]
[422708306,1779285046000,-500.0,8.219e-05,2]
[422708314,1779285046000,-500.0,8.219e-05,2]
[422708315,1779285046000,-813.84,8.219e-05,2]
[422708316,1779285046000,-1019.45,8.219e-05,2]
[422708307,1779285046000,-500.0,8.219e-05,2]
[422708300,1779285046000,-437.16029311,8.219e-05,2]
[422708308,1779285046000,-705.44,8.219e-05,2]
[422708309,1779285046000,-500.0,8.219e-05,2]
[422708312,1779285046000,-574.53785856,8.219e-05,2]
[422708313,1779285046000,-547.51,8.219e-05,2]
[422708310,1779285046000,-500.0,8.219e-05,2]
[422708311,1779285046000,-1331.15,8.219e-05,2]
[422708319,1779285046000,-500.0,8.219e-05,2]
[422708318,1779285046000,-500.0,8.219e-05,2]
[422708320,1779285046000,-500.0,8.219e-05,2]
[422708321,1779285046000,-1140.45568971,8.219e-05,2]
[422708317,1779285046000,-500.0,8.219e-05,2]
[422708347,1779285047000,-151.0,8.219e-05,2]
[422708355,1779285047000,-342.600091,8.219e-05,2]
[422708351,1779285047000,-681.23,8.219e-05,2]
[422708353,1779285047000,-342.600091,8.219e-05,2]
[422708349,1779285047000,-797.19,8.219e-05,2]
[422708350,1779285047000,-500.0,8.219e-05,2]
[422708348,1779285047000,-151.0,8.219e-05,2]
[422708354,1779285047000,-342.600091,8.219e-05,2]
[422708352,1779285047000,-500.0,8.219e-05,2]
[422708356,1779285047000,-342.600091,8.219e-05,2]
[422708360,1779285047000,-342.600091,8.219e-05,2]
[422708358,1779285047000,-342.600091,8.219e-05,2]
[422708359,1779285047000,-342.600091,8.219e-05,2]
[422708361,1779285047000,-342.600091,8.219e-05,2]
[422708346,1779285047000,-151.0,8.219e-05,2]
[422708362,1779285047000,-145.02571395,8.219e-05,2]
[422708363,1779285047000,-197.57437705,8.219e-05,2]
[422708369,1779285047000,-455.339401,8.219e-05,2]
[422708366,1779285047000,-455.339401,8.219e-05,2]
[422708371,1779285047000,-342.600091,8.219e-05,2]
[422708365,1779285047000,-342.600091,8.219e-05,2]
[422708357,1779285047000,-342.600091,8.219e-05,2]
[422708343,1779285047000,-77.81919634,8.219e-05,2]
[422708333,1779285047000,-151.0,8.219e-05,2]
[422708338,1779285047000,-151.0,8.219e-05,2]
[422708322,1779285047000,-301.17067815,8.219e-05,2]
[422708327,1779285047000,-500.0,8.219e-05,2]
[422708325,1779285047000,-500.0,8.219e-05,2]
[422708324,1779285047000,-503.54,8.219e-05,2]
[422708326,1779285047000,-1467.63,8.219e-05,2]
[422708328,1779285047000,-500.0,8.219e-05,2]
[422708323,1779285047000,-1083.31363214,8.219e-05,2]
[422708329,1779285047000,-500.0,8.219e-05,2]
[422708330,1779285047000,-500.0,8.219e-05,2]
[422708332,1779285047000,-151.0,8.219e-05,2]
[422708331,1779285047000,-151.0,8.219e-05,2]
[422708334,1779285047000,-151.0,8.219e-05,2]
[422708344,1779285047000,-422.18080366,8.219e-05,2]
[422708345,1779285047000,-1078.44,8.219e-05,2]
[422708339,1779285047000,-151.0,8.219e-05,2]
[422708342,1779285047000,-151.0,8.219e-05,2]
[422708341,1779285047000,-500.0,8.219e-05,2]
[422708370,1779285047000,-342.600091,8.219e-05,2]
[422708336,1779285047000,-151.0,8.219e-05,2]
[422708340,1779285047000,-166.444336,8.219e-05,2]
[422708335,1779285047000,-151.0,8.219e-05,2]
[422708337,1779285047000,-151.0,8.219e-05,2]
[422708368,1779285047000,-455.339401,8.219e-05,2]
[422708401,1779285047000,-218.61328,8.219e-05,2]
[422708364,1779285047000,-455.339401,8.219e-05,2]
[422708394,1779285047000,-5019.993307,8.219e-05,2]
[422708399,1779285047000,-5019.993307,8.219e-05,2]
[422708402,1779285047000,-5019.993307,8.219e-05,2]
[422708410,1779285047000,-907.05452001,8.219e-05,2]
[422708404,1779285047000,-218.61328,8.219e-05,2]
[422708403,1779285047000,-5019.993307,8.219e-05,2]
[422708406,1779285047000,-218.61328,8.219e-05,2]
[422708408,1779285047000,-525.72438744,8.219e-05,2]
[422708409,1779285047000,-3587.21439955,8.219e-05,2]
[422708392,1779285047000,-500.0,8.219e-05,2]
[422708411,1779285047000,-5019.993307,8.219e-05,2]
[422708407,1779285047000,-218.61328,8.219e-05,2]
[422708400,1779285047000,-218.61328,8.219e-05,2]
[422708412,1779285047000,-218.61328,8.219e-05,2]
[422708413,1779285047000,-5019.993307,8.219e-05,2]
[422708414,1779285047000,-218.61328,8.219e-05,2]
[422708415,1779285047000,-2974.42428131,8.219e-05,2]
[422708416,1779285047000,-2045.56902569,8.219e-05,2]
[422708417,1779285047000,-218.61328,8.219e-05,2]
[422708418,1779285047000,-188.75457893,8.219e-05,2]
[422708405,1779285047000,-5019.993307,8.219e-05,2]
[422708393,1779285047000,-5019.993307,8.219e-05,2]
[422708395,1779285047000,-5019.993307,8.219e-05,2]
[422708378,1779285047000,-455.339401,8.219e-05,2]
[422708367,1779285047000,-342.600091,8.219e-05,2]
[422708373,1779285047000,-342.600091,8.219e-05,2]
[422708375,1779285047000,-342.600087,8.219e-05,2]
[422708374,1779285047000,-455.339401,8.219e-05,2]
[422708377,1779285047000,-455.339401,8.219e-05,2]
[422708380,1779285047000,-455.339401,8.219e-05,2]
[422708382,1779285047000,-455.339401,8.219e-05,2]
[422708379,1779285047000,-455.339401,8.219e-05,2]
[422708376,1779285047000,-455.339401,8.219e-05,2]
[422708381,1779285047000,-455.339401,8.219e-05,2]
[422708390,1779285047000,-500.0,8.219e-05,2]
[422708372,1779285047000,-455.339401,8.219e-05,2]
[422708384,1779285047000,-455.339401,8.219e-05,2]
[422708398,1779285047000,-218.61328,8.219e-05,2]
[422708386,1779285047000,-500.0,8.219e-05,2]
[422708389,1779285047000,-500.0,8.219e-05,2]
[422708385,1779285047000,-455.339398,8.219e-05,2]
[422708397,1779285047000,-218.61328,8.219e-05,2]
[422708388,1779285047000,-1027.2,8.219e-05,2]
[422708391,1779285047000,-500.0,8.219e-05,2]
[422708396,1779285047000,-5019.993307,8.219e-05,2]
[422708387,1779285047000,-500.0,8.219e-05,2]
[422708383,1779285047000,-455.339401,8.219e-05,2]
[422708422,1779285493000,179.6472474,3.657e-05,2]
[422708424,1779285673000,-731.4,7.5e-05,2]
[422708425,1779285690000,-519.30543879,7.646e-05,2]
[422708426,1779285706000,-500.0,7.779e-05,2]
[422708427,1779285723000,-172.347886,7.939e-05,2]
[422708428,1779285741000,-179.0,8.051e-05,2]
[422708429,1779285757000,-443.0,8.051e-05,2]
[422708430,1779285774000,-647.0,8.051e-05,2]
[422708431,1779285791000,-185.0,8.051e-05,2]
[422708432,1779285918000,-508.91933002,8.084e-05,2]
[422708441,1779285919000,-221.49743124,8.218e-05,2]
[422708433,1779285919000,-160.0,8.084e-05,2]
[422708439,1779285919000,-300.0,8.217e-05,2]
[422708437,1779285919000,-1200.0,8.216e-05,2]
[422708438,1779285919000,-300.0,8.217e-05,2]
[422708436,1779285919000,-160.0,8.084e-05,2]
[422708435,1779285919000,-161.70661154,8.084e-05,2]
[422708434,1779285919000,-766.43500783,8.084e-05,2]
[422708440,1779285919000,-300.0,8.217e-05,2]
[422708442,1779285959000,443.0,8.095e-05,2]
[422708443,1779285962000,300.0,8.217e-05,2]
[422708445,1779285987000,28.0,8.095e-05,2]
[422708444,1779285987000,157.0,8.095e-05,2]
[422708451,1779286185000,500.0,7.808e-05,2]
[422708516,1779286232000,-693.95141123,8.218e-05,2]
[422708514,1779286232000,-693.95141123,8.218e-05,2]
[422708498,1779286232000,-693.95141123,8.218e-05,2]
[422708512,1779286232000,-693.95141123,8.218e-05,2]
[422708511,1779286232000,-693.95141123,8.218e-05,2]
[422708507,1779286232000,-693.95141123,8.218e-05,2]
[422708509,1779286232000,-693.95141123,8.218e-05,2]
[422708501,1779286232000,-693.95141123,8.218e-05,2]
[422708491,1779286232000,-500.0,8.218e-05,2]
[422708504,1779286232000,-693.95141123,8.218e-05,2]
[422708502,1779286232000,-693.95141123,8.218e-05,2]
[422708496,1779286232000,-693.95141123,8.218e-05,2]
[422708478,1779286232000,-160.0,8.218e-05,2]
[422708492,1779286232000,-512.27327933,8.218e-05,2]
[422708488,1779286232000,-497.97627615,8.218e-05,2]
[422708486,1779286232000,-500.0,8.218e-05,2]
[422708473,1779286232000,-766.43500783,8.218e-05,2]
[422708474,1779286232000,-161.70661154,8.218e-05,2]
[422708476,1779286232000,-160.0,8.218e-05,2]
[422708471,1779286232000,-498.74094342,8.217e-05,2]
[422708482,1779286232000,-500.0,8.218e-05,2]
[422708480,1779286232000,-278.50256876,8.218e-05,2]
[422708468,1779286232000,-300.0,8.217e-05,2]
[422708518,1779286232000,-693.95141123,8.218e-05,2]
[422708494,1779286232000,-693.95141123,8.218e-05,2]
[422708520,1779286232000,-693.95141123,8.218e-05,2]
[422708485,1779286232000,-500.0,8.218e-05,2]
[422708532,1779286232000,-704.62758678,8.218e-05,2]
[422708522,1779286232000,-693.95141123,8.218e-05,2]
[422708571,1779286232000,-500.0,8.219e-05,2]
[422708573,1779286232000,-56.91942651,8.219e-05,2]
[422708568,1779286232000,-156.081244,8.219e-05,2]
[422708564,1779286232000,-3870.0379,8.219e-05,2]
[422708566,1779286232000,-151.0,8.219e-05,2]
[422708570,1779286232000,-306.88690468,8.219e-05,2]
[422708560,1779286232000,-156.7783353,8.219e-05,2]
[422708552,1779286232000,-704.62758678,8.218e-05,2]
[422708562,1779286232000,-2890.56517,8.219e-05,2]
[422708548,1779286232000,-704.62758678,8.218e-05,2]
[422708550,1779286232000,-704.62758678,8.218e-05,2]
[422708558,1779286232000,-212.189,8.218e-05,2]
[422708546,1779286232000,-704.62758678,8.218e-05,2]
[422708544,1779286232000,-704.62758678,8.218e-05,2]
[422708528,1779286232000,-693.95141123,8.218e-05,2]
[422708531,1779286232000,-693.95141123,8.218e-05,2]
[422708536,1779286232000,-182.49376966,8.218e-05,2]
[422708526,1779286232000,-693.95141123,8.218e-05,2]
[422708534,1779286232000,-704.62758678,8.218e-05,2]
[422708524,1779286232000,-693.95141123,8.218e-05,2]
[422708541,1779286232000,-704.62758678,8.218e-05,2]
[422708539,1779286232000,-522.13381712,8.218e-05,2]
[422708543,1779286232000,-704.62758678,8.218e-05,2]
[422708554,1779286232000,-834.18814306,8.218e-05,2]
[422708556,1779286232000,-834.18814306,8.218e-05,2]
[422708668,1779286238000,-500.0,8.219e-05,2]
[422708683,1779286238000,-500.0,8.219e-05,2]
[422708685,1779286238000,-500.0,8.219e-05,2]
[422708672,1779286238000,-659.33868336,8.219e-05,2]
[422708675,1779286238000,-500.0,8.219e-05,2]
[422708670,1779286238000,-500.0,8.219e-05,2]
[422708665,1779286238000,-500.0,8.219e-05,2]
[422708669,1779286238000,-500.0,8.219e-05,2]
[422708667,1779286238000,-21.23183384,8.219e-05,2]
[422708664,1779286238000,-500.0,8.219e-05,2]
[422708663,1779286238000,-443.08057349,8.219e-05,2]
[422708666,1779286238000,-478.76816616,8.219e-05,2]
[422708673,1779286238000,-171.92131664,8.219e-05,2]
[422708671,1779286238000,-500.0,8.219e-05,2]
[422708684,1779286238000,-500.0,8.219e-05,2]
[422708681,1779286238000,-598.83679054,8.219e-05,2]
[422708676,1779286238000,-500.0,8.219e-05,2]
[422708674,1779286238000,-500.0,8.219e-05,2]
[422708693,1779286238000,-347.47833456,8.219e-05,2]
[422708687,1779286238000,-130.95059065,8.219e-05,2]
[422708690,1779286238000,-139.73301511,8.219e-05,2]
[422708691,1779286238000,-652.85,8.219e-05,2]
[422708688,1779286238000,-1033.51,8.219e-05,2]
[422708692,1779286238000,-500.0,8.219e-05,2]
[422708682,1779286238000,-378.13320946,8.219e-05,2]
[422708689,1779286238000,-360.26698489,8.219e-05,2]
[422708680,1779286238000,-500.0,8.219e-05,2]
[422708679,1779286238000,-501.2777946,8.219e-05,2]
[422708677,1779286238000,-500.0,8.219e-05,2]
[422708678,1779286238000,-500.0,8.219e-05,2]
[422708686,1779286238000,-369.04940935,8.219e-05,2]
[422708914,1779286242000,-500.0,8.219e-05,2]
[422708931,1779286242000,-500.0,8.219e-05,2]
[422708930,1779286242000,-500.0,8.219e-05,2]
[422708927,1779286242000,-500.0,8.219e-05,2]
[422708912,1779286242000,-500.0,8.219e-05,2]
[422708918,1779286242000,-363.79447513,8.219e-05,2]
[422708926,1779286242000,-500.0,8.219e-05,2]
[422708922,1779286242000,-500.0,8.219e-05,2]
[422708920,1779286242000,-500.0,8.219e-05,2]
[422708924,1779286242000,-500.0,8.219e-05,2]
[422708916,1779286242000,-136.20552487,8.219e-05,2]
[422708933,1779286242000,-500.0,8.219e-05,2]
[422708910,1779286242000,-152.52166544,8.219e-05,2]
[422708935,1779286242000,-500.0,8.219e-05,2]
[422708945,1779286242000,-514.7,8.219e-05,2]
[422708937,1779286242000,-500.0,8.219e-05,2]
[422708941,1779286242000,-500.0,8.219e-05,2]
[422708962,1779286242000,-362.48924442,8.219e-05,2]
[422708957,1779286242000,-500.0,8.219e-05,2]
[422708955,1779286242000,-500.0,8.219e-05,2]
[422708959,1779286242000,-137.51075558,8.219e-05,2]
[422708964,1779286242000,-231.794285,8.219e-05,2]
[422708966,1779286242000,-415.90522454,8.219e-05,2]
[422708951,1779286242000,-500.0,8.219e-05,2]
[422708949,1779286242000,-269.44924442,8.219e-05,2]
[422708947,1779286242000,-230.55075558,8.219e-05,2]
[422708943,1779286242000,-500.0,8.219e-05,2]
[422708939,1779286242000,-614.59,8.219e-05,2]
[422708953,1779286242000,-500.0,8.219e-05,2]
[422709180,1779286243000,-141.31478454,8.219e-05,2]
[422709178,1779286243000,-500.0,8.219e-05,2]
[422709174,1779286243000,-500.0,8.219e-05,2]
[422709176,1779286243000,-500.0,8.219e-05,2]
[422709172,1779286243000,-307.78477546,8.219e-05,2]
[422709217,1779286244000,-500.0,8.219e-05,2]
[422709208,1779286244000,-358.68521546,8.219e-05,2]
[422709210,1779286244000,-500.0,8.219e-05,2]
[422709215,1779286244000,-1427.58,8.219e-05,2]
[422709213,1779286244000,-521.83,8.219e-05,2]
[422709219,1779286244000,-763.97,8.219e-05,2]
[422709225,1779286244000,-500.0,8.219e-05,2]
[422709227,1779286244000,-500.0,8.219e-05,2]
[422709223,1779286244000,-500.0,8.219e-05,2]
[422709221,1779286244000,-500.0,8.219e-05,2]
[422709229,1779286244000,-198.51969833,8.219e-05,2]
[422709212,1779286244000,-500.0,8.219e-05,2]
[422709318,1779286247000,-1183.359381,8.219e-05,2]
[422709319,1779286247000,-293.04237838,8.219e-05,2]
[422709316,1779286247000,-500.0,8.219e-05,2]
[422709320,1779286247000,-890.31700262,8.219e-05,2]
[422709323,1779286247000,-1183.359381,8.219e-05,2]
[422709321,1779286247000,-1183.359381,8.219e-05,2]
[422709324,1779286247000,-845.29684316,8.219e-05,2]
[422709325,1779286247000,-338.06253784,8.219e-05,2]
[422709326,1779286247000,-1183.359381,8.219e-05,2]
[422709327,1779286247000,-1183.359381,8.219e-05,2]
[422709328,1779286247000,-1930.62,8.219e-05,2]
[422709330,1779286247000,-151.0,8.219e-05,2]
[422709340,1779286247000,-216.9251,8.219e-05,2]
[422709329,1779286247000,-1183.359381,8.219e-05,2]
[422709322,1779286247000,-500.0,8.219e-05,2]
[422709317,1779286247000,-648.3,8.219e-05,2]
[422709301,1779286247000,-500.0,8.219e-05,2]
[422709314,1779286247000,-500.0,8.219e-05,2]
[422709335,1779286247000,-500.0,8.219e-05,2]
[422709300,1779286247000,-500.0,8.219e-05,2]
[422709309,1779286247000,-500.0,8.219e-05,2]
[422709299,1779286247000,-500.0,8.219e-05,2]
[422709311,1779286247000,-516.87,8.219e-05,2]
[422709310,1779286247000,-1276.52,8.219e-05,2]
[422709302,1779286247000,-500.0,8.219e-05,2]
[422709303,1779286247000,-500.0,8.219e-05,2]
[422709304,1779286247000,-500.0,8.219e-05,2]
[422709306,1779286247000,-984.4,8.219e-05,2]
[422709308,1779286247000,-500.0,8.219e-05,2]
[422709305,1779286247000,-622.16461361,8.219e-05,2]
[422709307,1779286247000,-818.32,8.219e-05,2]
[422709313,1779286247000,-663.49,8.219e-05,2]
[422709315,1779286247000,-500.00000055,8.219e-05,2]
[422709312,1779286247000,-500.0,8.219e-05,2]
[422709331,1779286247000,-1183.359381,8.219e-05,2]
[422709298,1779286247000,-301.48030167,8.219e-05,2]
[422709332,1779286247000,-151.0,8.219e-05,2]
[422709355,1779286247000,-1169.413576,8.219e-05,2]
[422709356,1779286247000,-500.0,8.219e-05,2]
[422709357,1779286247000,-1169.413576,8.219e-05,2]
[422709363,1779286247000,-2585.3,8.219e-05,2]
[422709364,1779286247000,-1169.413576,8.219e-05,2]
[422709365,1779286247000,-1169.413576,8.219e-05,2]
[422709366,1779286247000,-500.0,8.219e-05,2]
[422709358,1779286247000,-1169.413576,8.219e-05,2]
[422709360,1779286247000,-151.0,8.219e-05,2]
[422709359,1779286247000,-151.0,8.219e-05,2]
[422709362,1779286247000,-2118.84,8.219e-05,2]
[422709369,1779286247000,-5447.09574406,8.219e-05,2]
[422709367,1779286247000,-1169.413576,8.219e-05,2]
[422709368,1779286247000,-500.0,8.219e-05,2]
[422709334,1779286247000,-151.0,8.219e-05,2]
[422709354,1779286247000,-1169.413576,8.219e-05,2]
[422709348,1779286247000,-1169.413576,8.219e-05,2]
[422709361,1779286247000,-151.0,8.219e-05,2]
[422709350,1779286247000,-500.0,8.219e-05,2]
[422709351,1779286247000,-500.0,8.219e-05,2]
[422709333,1779286247000,-500.0,8.219e-05,2]
[422709337,1779286247000,-1183.359381,8.219e-05,2]
[422709336,1779286247000,-1183.359381,8.219e-05,2]
[422709339,1779286247000,-151.0,8.219e-05,2]
[422709342,1779286247000,-500.0,8.219e-05,2]
[422709352,1779286247000,-1169.413576,8.219e-05,2]
[422709338,1779286247000,-1183.359381,8.219e-05,2]
[422709344,1779286247000,-500.0,8.219e-05,2]
[422709341,1779286247000,-500.0,8.219e-05,2]
[422709349,1779286247000,-2113.54,8.219e-05,2]
[422709343,1779286247000,-1169.413576,8.219e-05,2]
[422709346,1779286247000,-1169.413576,8.219e-05,2]
[422709347,1779286247000,-4852.4,8.219e-05,2]
[422709345,1779286247000,-1169.413576,8.219e-05,2]
[422709353,1779286247000,-500.0,8.219e-05,2]
[422709370,1779286248000,152.0,7.943e-05,7]
[422709371,1779286252000,186.71021,8.163e-05,2]
[422709372,1779286279000,333.28979,8.095e-05,2]
[422709376,1779286785000,500.0,7.808e-05,2]
[422709408,1779287235000,-151.0,8.214e-05,2]
[422709405,1779287235000,-328.16652329,8.119e-05,2]
[422709407,1779287235000,-537.6845,8.213e-05,2]
[422709406,1779287235000,-794.0,8.2e-05,2]
[422709404,1779287235000,-2715.00825911,8.119e-05,2]
[422709403,1779287235000,-161.70661154,8.118e-05,2]
[422709402,1779287235000,-766.43500783,8.118e-05,2]
[422709401,1779287235000,-6114.00033406,8.095e-05,2]
[422709399,1779287235000,-151.0,8.095e-05,2]
[422709400,1779287235000,-151.0,8.095e-05,2]
[422709390,1779287235000,-300.0,8.094e-05,2]
[422709398,1779287235000,-552.711,8.095e-05,2]
[422709395,1779287235000,-206.761,8.095e-05,2]
[422709394,1779287235000,-300.0,8.094e-05,2]
[422709392,1779287235000,-300.0,8.094e-05,2]
[422709396,1779287235000,-742.0,8.095e-05,2]
[422709393,1779287235000,-1200.0,8.094e-05,2]
[422709391,1779287235000,-300.0,8.094e-05,2]
[422709389,1779287235000,-495.93978249,8.094e-05,2]
[422709410,1779287235000,-169.751,8.218e-05,2]
[422709397,1779287235000,-185.0,8.095e-05,2]
[422709411,1779287235000,-486.677267,8.218e-05,2]
[422709427,1779287235000,-500.52286349,8.219e-05,2]
[422709409,1779287235000,-160.0,8.217e-05,2]
[422709430,1779287235000,-519.42238121,8.219e-05,2]
[422709432,1779287235000,-500.0,8.219e-05,2]
[422709433,1779287235000,-500.0,8.219e-05,2]
[422709434,1779287235000,-500.0,8.219e-05,2]
[422709429,1779287235000,-500.0,8.219e-05,2]
[422709431,1779287235000,-1003.58,8.219e-05,2]
[422709428,1779287235000,-500.0,8.219e-05,2]
[422709413,1779287235000,-389.00559278,8.219e-05,2]
[422709425,1779287235000,-500.0,8.219e-05,2]
[422709423,1779287235000,-988.64,8.219e-05,2]
[422709426,1779287235000,-7812.4338655,8.219e-05,2]
[422709420,1779287235000,-500.0,8.219e-05,2]
[422709412,1779287235000,-500.0,8.219e-05,2]
[422709415,1779287235000,-10791.9905123,8.219e-05,2]
[422709424,1779287235000,-500.0,8.219e-05,2]
[422709416,1779287235000,-500.0,8.219e-05,2]
[422709417,1779287235000,-500.0,8.219e-05,2]
[422709414,1779287235000,-500.22279789,8.219e-05,2]
[422709418,1779287235000,-500.0,8.219e-05,2]